[Event "Late-Titled-Tuesday-Blitz-January-23-2024"]
[Site "Chess.com"]
[Date "2024.01.23"]
[Round "4"]
[White "TheoSlade"]
[Black "WilliamAlfaroCaracas"]
[Result "1-0"]
[WhiteElo "2472"]
[BlackElo "2250"]
[TimeControl "180+1"]
[EndTime "14:37:06 PST"]
[Termination "TheoSlade won by resignation"]

1. d4 {[%clk 0:03:00.9]} 1... Nf6 {[%clk 0:02:59.1]} 2. c4 {[%clk 0:03:01.2]}
2... g6 {[%clk 0:02:59.6]} 3. Nc3 {[%clk 0:03:01.2]} 3... Bg7 {[%clk 0:03:00.2]}
4. e4 {[%clk 0:03:01.6]} 4... d6 {[%clk 0:02:59.7]} 5. Nf3 {[%clk 0:03:02.2]}
5... O-O {[%clk 0:02:59.1]} 6. Be2 {[%clk 0:03:02.9]} 6... e5 {[%clk 0:02:59.2]}
7. Be3 {[%clk 0:03:03.5]} 7... Nc6 {[%clk 0:02:58.2]} 8. d5 {[%clk 0:03:03.4]}
8... Ne7 {[%clk 0:02:58.8]} 9. Nd2 {[%clk 0:03:03.9]} 9... Nd7 {[%clk
0:02:41.8]} 10. f3 {[%clk 0:03:01.6]} 10... f5 {[%clk 0:02:41.5]} 11. b4 {[%clk
0:02:59.9]} 11... f4 {[%clk 0:02:40.5]} 12. Bf2 {[%clk 0:03:00]} 12... a5 {[%clk
0:02:32.4]} 13. bxa5 {[%clk 0:02:56.7]} 13... Rxa5 {[%clk 0:02:31]} 14. Nb3
{[%clk 0:02:57.3]} 14... Ra8 {[%clk 0:02:30.3]} 15. c5 {[%clk 0:02:57.4]} 15...
b6 {[%clk 0:02:04.9]} 16. cxd6 {[%clk 0:02:56]} 16... cxd6 {[%clk 0:02:04.2]}
17. Nb5 {[%clk 0:02:56.5]} 17... Nc5 {[%clk 0:02:02.5]} 18. Nd2 {[%clk
0:02:35.4]} 18... Ba6 {[%clk 0:01:54.4]} 19. O-O {[%clk 0:02:24.4]} 19... Qd7
{[%clk 0:01:45.8]} 20. a4 {[%clk 0:02:18.2]} 20... g5 {[%clk 0:01:05.9]} 21. Nc4
{[%clk 0:01:51.4]} 21... Bxb5 {[%clk 0:01:05.5]} 22. axb5 {[%clk 0:01:45.2]}
22... Rxa1 {[%clk 0:01:05.3]} 23. Qxa1 {[%clk 0:01:45.9]} 23... Qxb5 {[%clk
0:01:04.6]} 24. Rb1 {[%clk 0:01:41.7]} 24... Qa4 {[%clk 0:00:46.8]} 25. Bxc5
{[%clk 0:01:21.5]} 25... Qxa1 {[%clk 0:00:43.7]} 26. Rxa1 {[%clk 0:01:22.4]}
26... dxc5 {[%clk 0:00:37.4]} 27. Nxb6 {[%clk 0:01:22.2]} 27... Nc8 {[%clk
0:00:33.5]} 28. Nd7 {[%clk 0:01:19.6]} 28... Nd6 {[%clk 0:00:13.1]} 29. Nxf8
{[%clk 0:01:17]} 29... Bxf8 {[%clk 0:00:13.3]} 30. Ra7 {[%clk 0:01:11.4]} 30...
h5 {[%clk 0:00:06.5]} 31. Rc7 {[%clk 0:01:11.5]} 31... Nf7 {[%clk 0:00:03.5]}
32. Bb5 {[%clk 0:01:06.1]} 32... Bd6 {[%clk 0:00:03.7]} 33. Rc8+ {[%clk
0:01:05.5]} 33... Kg7 {[%clk 0:00:04.3]} 34. Be8 {[%clk 0:01:06]} 34... Nh6
{[%clk 0:00:02.1]} 35. Bxh5 {[%clk 0:01:05]} 35... Ng8 {[%clk 0:00:01.6]} 36.
Rc6 {[%clk 0:01:03.9]} 36... Kf6 {[%clk 0:00:02.2]} 37. Rxd6+ {[%clk 0:01:03.8]}
1-0

[Event "Late-Titled-Tuesday-Blitz-January-23-2024"]
[Site "Chess.com"]
[Date "2024.01.23"]
[Round "4"]
[White "Msb2"]
[Black "GothamChess"]
[Result "1-0"]
[WhiteElo "3045"]
[BlackElo "2787"]
[TimeControl "180+1"]
[EndTime "14:37:07 PST"]
[Termination "Msb2 won by resignation"]

1. d4 {[%clk 0:03:00.9]} 1... g6 {[%clk 0:02:57.9]} 2. c4 {[%clk 0:02:59.6]}
2... Bg7 {[%clk 0:02:58.6]} 3. e4 {[%clk 0:02:59]} 3... Nc6 {[%clk 0:02:57.7]}
4. Nf3 {[%clk 0:02:59.3]} 4... e5 {[%clk 0:02:57.3]} 5. Bg5 {[%clk 0:03:00]}
5... f6 {[%clk 0:02:57.2]} 6. Be3 {[%clk 0:03:00.8]} 6... Nh6 {[%clk 0:02:52.9]}
7. d5 {[%clk 0:03:01.4]} 7... Ne7 {[%clk 0:02:48.8]} 8. d6 {[%clk 0:02:53.9]}
8... cxd6 {[%clk 0:02:47.2]} 9. Nc3 {[%clk 0:02:48.8]} 9... Ng4 {[%clk
0:02:33.1]} 10. Qxd6 {[%clk 0:02:22.1]} 10... Nxe3 {[%clk 0:02:25.3]} 11. fxe3
{[%clk 0:02:23]} 11... Qb6 {[%clk 0:02:22]} 12. Qxb6 {[%clk 0:02:20.1]} 12...
axb6 {[%clk 0:02:22.1]} 13. Nb5 {[%clk 0:02:12.2]} 13... O-O {[%clk 0:02:12.9]}
14. a3 {[%clk 0:02:10.8]} 14... Nc6 {[%clk 0:01:48.3]} 15. Rd1 {[%clk 0:02:00]}
15... Bh6 {[%clk 0:01:35.2]} 16. Kf2 {[%clk 0:01:53.5]} 16... f5 {[%clk
0:01:31.5]} 17. Bd3 {[%clk 0:01:47.3]} 17... Na5 {[%clk 0:01:30.1]} 18. Nd6
{[%clk 0:01:41]} 18... Nb3 {[%clk 0:01:15.1]} 19. exf5 {[%clk 0:01:31.3]} 19...
Nc5 {[%clk 0:01:05.4]} 20. g4 {[%clk 0:01:25.4]} 20... Bg7 {[%clk 0:00:47.7]}
21. e4 {[%clk 0:01:08.4]} 21... Bf6 {[%clk 0:00:23.9]} 22. Bc2 {[%clk 0:01:04]}
22... Be7 {[%clk 0:00:20.6]} 23. Ke3 {[%clk 0:00:56.1]} 23... Na4 {[%clk
0:00:18.1]} 24. Bxa4 {[%clk 0:00:49]} 24... Rxa4 {[%clk 0:00:19]} 25. h4 {[%clk
0:00:49.4]} 25... Kh8 {[%clk 0:00:10.7]} 26. Nxe5 {[%clk 0:00:47.9]} 26... Bf6
{[%clk 0:00:07.8]} 27. Nxc8 {[%clk 0:00:42.4]} 27... Bxe5 {[%clk 0:00:05.6]} 28.
Nxb6 {[%clk 0:00:42]} 1-0

[Event "Late-Titled-Tuesday-Blitz-January-23-2024"]
[Site "Chess.com"]
[Date "2024.01.23"]
[Round "4"]
[White "DeArron_Fox"]
[Black "Vicmary2005"]
[Result "1-0"]
[WhiteElo "2443"]
[BlackElo "1989"]
[TimeControl "180+1"]
[EndTime "14:37:10 PST"]
[Termination "DeArron_Fox won by resignation"]

1. d4 {[%clk 0:03:00.9]} 1... Nf6 {[%clk 0:02:59.2]} 2. c4 {[%clk 0:02:59.6]}
2... g6 {[%clk 0:02:58.5]} 3. Nc3 {[%clk 0:03:00]} 3... Bg7 {[%clk 0:02:58.3]}
4. e4 {[%clk 0:03:00.2]} 4... d6 {[%clk 0:02:58.6]} 5. f3 {[%clk 0:03:00.8]}
5... O-O {[%clk 0:02:58.4]} 6. Be3 {[%clk 0:03:01.4]} 6... Nc6 {[%clk
0:02:55.3]} 7. Nge2 {[%clk 0:03:01.9]} 7... a6 {[%clk 0:02:55]} 8. Qd2 {[%clk
0:03:02.3]} 8... Rb8 {[%clk 0:02:53.7]} 9. Rc1 {[%clk 0:02:59.2]} 9... e5 {[%clk
0:02:37.9]} 10. d5 {[%clk 0:02:52.9]} 10... Ne7 {[%clk 0:02:37.3]} 11. g3 {[%clk
0:02:46.5]} 11... Nd7 {[%clk 0:02:26.6]} 12. b4 {[%clk 0:02:35.2]} 12... f5
{[%clk 0:01:31.1]} 13. Bg2 {[%clk 0:02:34]} 13... f4 {[%clk 0:01:22.4]} 14. gxf4
{[%clk 0:02:28.3]} 14... exf4 {[%clk 0:01:23.3]} 15. Nxf4 {[%clk 0:02:28.6]}
15... Ne5 {[%clk 0:01:21.6]} 16. Nce2 {[%clk 0:01:42.2]} 16... g5 {[%clk
0:01:13.6]} 17. Nh5 {[%clk 0:01:41.4]} 17... Rxf3 {[%clk 0:01:12.6]} 18. Nxg7
{[%clk 0:01:35.7]} 18... Kxg7 {[%clk 0:01:11.2]} 19. Bd4 {[%clk 0:01:26.5]}
19... Rf6 {[%clk 0:00:48]} 20. Qxg5+ {[%clk 0:01:03.6]} 20... Rg6 {[%clk
0:00:33.2]} 21. Bxe5+ {[%clk 0:01:02.9]} 21... Kg8 {[%clk 0:00:33]} 22. Qh4
{[%clk 0:00:35.6]} 22... dxe5 {[%clk 0:00:24.1]} 23. O-O {[%clk 0:00:24.2]}
23... Rg4 {[%clk 0:00:20.9]} 24. Qf6 {[%clk 0:00:22]} 24... Ng6 {[%clk
0:00:19.8]} 25. Qxd8+ {[%clk 0:00:21.4]} 1-0

[Event "Late-Titled-Tuesday-Blitz-January-23-2024"]
[Site "Chess.com"]
[Date "2024.01.23"]
[Round "4"]
[White "FabianoCaruana"]
[Black "FontVella8"]
[Result "1-0"]
[WhiteElo "3038"]
[BlackElo "2745"]
[TimeControl "180+1"]
[EndTime "14:37:13 PST"]
[Termination "FabianoCaruana won by resignation"]

1. e4 {[%clk 0:03:00.9]} 1... c6 {[%clk 0:02:59.9]} 2. d4 {[%clk 0:02:59.2]}
2... d5 {[%clk 0:03:00.8]} 3. e5 {[%clk 0:02:59.2]} 3... Bf5 {[%clk 0:03:00.7]}
4. Nf3 {[%clk 0:02:57.6]} 4... e6 {[%clk 0:03:01.1]} 5. Be2 {[%clk 0:02:58.1]}
5... Nd7 {[%clk 0:03:01.6]} 6. O-O {[%clk 0:02:57.3]} 6... h6 {[%clk 0:03:02.2]}
7. Nbd2 {[%clk 0:02:57.4]} 7... a6 {[%clk 0:03:02.6]} 8. a4 {[%clk 0:02:56.9]}
8... Qc7 {[%clk 0:03:02]} 9. c3 {[%clk 0:02:54.9]} 9... g5 {[%clk 0:03:00.6]}
10. a5 {[%clk 0:02:54]} 10... f6 {[%clk 0:02:57.7]} 11. exf6 {[%clk 0:02:52.1]}
11... Bd6 {[%clk 0:02:54.5]} 12. Re1 {[%clk 0:02:42.1]} 12... Ngxf6 {[%clk
0:02:53.5]} 13. Nf1 {[%clk 0:02:42]} 13... O-O-O {[%clk 0:02:50.4]} 14. Bd3
{[%clk 0:02:35.5]} 14... Ne4 {[%clk 0:02:43.6]} 15. Ng3 {[%clk 0:02:32.4]} 15...
Nxg3 {[%clk 0:02:19.4]} 16. hxg3 {[%clk 0:02:33.3]} 16... Rdf8 {[%clk
0:02:06.6]} 17. c4 {[%clk 0:02:24.9]} 17... Bg4 {[%clk 0:01:56]} 18. Be2 {[%clk
0:02:13.6]} 18... dxc4 {[%clk 0:01:46.9]} 19. Nd2 {[%clk 0:02:11.8]} 19... h5
{[%clk 0:01:16.2]} 20. Nxc4 {[%clk 0:02:06.5]} 20... Bxg3 {[%clk 0:00:55.7]} 21.
fxg3 {[%clk 0:01:23.7]} 21... Qxg3 {[%clk 0:00:55.7]} 22. Be3 {[%clk 0:01:24.1]}
22... Bh3 {[%clk 0:00:19.2]} 23. Bf3 {[%clk 0:01:22.9]} 23... g4 {[%clk
0:00:10.4]} 24. Bf2 {[%clk 0:01:11.6]} 24... Qc7 {[%clk 0:00:10.3]} 25. Rxe6
{[%clk 0:00:59.2]} 25... gxf3 {[%clk 0:00:04.5]} 26. Nd6+ {[%clk 0:00:58.9]}
26... Kb8 {[%clk 0:00:02.8]} 27. gxh3 {[%clk 0:00:59.1]} 27... Rhg8+ {[%clk
0:00:03.1]} 28. Kf1 {[%clk 0:00:53.6]} 28... Rg2 {[%clk 0:00:02.6]} 29. Qb3
{[%clk 0:00:47.6]} 29... Nc5 {[%clk 0:00:01]} 30. dxc5 {[%clk 0:00:46.2]} 30...
Qg7 {[%clk 0:00:01.6]} 31. Qxb7+ {[%clk 0:00:43.2]} 31... Qxb7 {[%clk
0:00:01.8]} 32. Nxb7 {[%clk 0:00:44.1]} 1-0

[Event "Late-Titled-Tuesday-Blitz-January-23-2024"]
[Site "Chess.com"]
[Date "2024.01.23"]
[Round "4"]
[White "LevonAronian"]
[Black "ChessFighter_2011"]
[Result "1-0"]
[WhiteElo "3110"]
[BlackElo "2927"]
[TimeControl "180+1"]
[EndTime "14:37:14 PST"]
[Termination "LevonAronian won by resignation"]

1. e4 {[%clk 0:02:57.4]} 1... c5 {[%clk 0:02:59.7]} 2. Nf3 {[%clk 0:02:57.4]}
2... d6 {[%clk 0:02:59.1]} 3. c3 {[%clk 0:02:57.5]} 3... Nf6 {[%clk 0:02:58.4]}
4. Be2 {[%clk 0:02:58.1]} 4... g6 {[%clk 0:02:58.7]} 5. O-O {[%clk 0:02:58.3]}
5... Bg7 {[%clk 0:02:59.1]} 6. d3 {[%clk 0:02:59]} 6... O-O {[%clk 0:02:59.4]}
7. Be3 {[%clk 0:02:59.7]} 7... Nc6 {[%clk 0:02:59.8]} 8. Nbd2 {[%clk 0:03:00.3]}
8... b6 {[%clk 0:02:55.9]} 9. d4 {[%clk 0:03:00.5]} 9... Ng4 {[%clk 0:02:55.8]}
10. Bg5 {[%clk 0:03:00.4]} 10... cxd4 {[%clk 0:02:50.5]} 11. cxd4 {[%clk
0:02:59.7]} 11... Bb7 {[%clk 0:02:50.4]} 12. d5 {[%clk 0:02:59.7]} 12... Nce5
{[%clk 0:02:47.6]} 13. Nxe5 {[%clk 0:02:51.1]} 13... Nxe5 {[%clk 0:02:48.5]} 14.
Rc1 {[%clk 0:02:50.8]} 14... Bf6 {[%clk 0:02:43.8]} 15. Bh6 {[%clk 0:02:42.5]}
15... Bg7 {[%clk 0:02:44.1]} 16. Bxg7 {[%clk 0:02:39.2]} 16... Kxg7 {[%clk
0:02:45]} 17. Qa4 {[%clk 0:02:39]} 17... a6 {[%clk 0:02:35.3]} 18. Qd4 {[%clk
0:02:35.5]} 18... f6 {[%clk 0:02:28.9]} 19. Nb3 {[%clk 0:02:28.1]} 19... Nd7
{[%clk 0:02:23.8]} 20. Qe3 {[%clk 0:02:26.4]} 20... e5 {[%clk 0:01:31.3]} 21.
dxe6 {[%clk 0:02:24.9]} 21... Nc5 {[%clk 0:01:31.8]} 22. Nd4 {[%clk 0:02:24.1]}
22... Qe7 {[%clk 0:01:31.7]} 23. Bc4 {[%clk 0:01:58.9]} 23... Kh8 {[%clk
0:01:18.8]} 24. Bd5 {[%clk 0:01:54.5]} 24... Rac8 {[%clk 0:01:05.5]} 25. b4
{[%clk 0:01:42.7]} 25... Na4 {[%clk 0:01:05.6]} 26. Rxc8 {[%clk 0:01:43]} 26...
Rxc8 {[%clk 0:01:04.8]} 27. Rc1 {[%clk 0:01:43.9]} 27... Re8 {[%clk 0:00:47.4]}
28. Rc2 {[%clk 0:01:30]} 28... b5 {[%clk 0:00:46.5]} 29. Qc1 {[%clk 0:01:29.8]}
29... Nb6 {[%clk 0:00:35.7]} 30. Rc7 {[%clk 0:01:22.9]} 30... Rc8 {[%clk
0:00:35.5]} 31. Rxc8+ {[%clk 0:01:23]} 31... Nxc8 {[%clk 0:00:35.6]} 32. h4
{[%clk 0:01:13.6]} 32... Nb6 {[%clk 0:00:32]} 33. Bxb7 {[%clk 0:01:10.1]} 33...
Qxb7 {[%clk 0:00:32.9]} 34. Qf4 {[%clk 0:01:10.2]} 34... Qe7 {[%clk 0:00:32.1]}
35. h5 {[%clk 0:01:10]} 35... Nc4 {[%clk 0:00:31.4]} 36. hxg6 {[%clk 0:01:09]}
36... hxg6 {[%clk 0:00:24.7]} 37. Qh6+ {[%clk 0:01:08.8]} 37... Kg8 {[%clk
0:00:25.6]} 38. Qxg6+ {[%clk 0:01:08.7]} 38... Kf8 {[%clk 0:00:26.1]} 39. Qh5
{[%clk 0:01:02.3]} 39... Kg8 {[%clk 0:00:24.7]} 40. Qd5 {[%clk 0:00:54.3]} 40...
Ne5 {[%clk 0:00:20.6]} 41. Nf5 {[%clk 0:00:52.2]} 1-0

[Event "Late-Titled-Tuesday-Blitz-January-23-2024"]
[Site "Chess.com"]
[Date "2024.01.23"]
[Round "4"]
[White "Lady_Nika"]
[Black "sebastianmarinp"]
[Result "1-0"]
[WhiteElo "2550"]
[BlackElo "2398"]
[TimeControl "180+1"]
[EndTime "14:37:14 PST"]
[Termination "Lady_Nika won on time"]

1. d4 {[%clk 0:03:00.9]} 1... d5 {[%clk 0:02:56.9]} 2. e3 {[%clk 0:03:00.4]}
2... Nf6 {[%clk 0:02:51.5]} 3. f4 {[%clk 0:03:00.1]} 3... g6 {[%clk 0:02:50.2]}
4. Nf3 {[%clk 0:03:00.4]} 4... Bg7 {[%clk 0:02:50.4]} 5. c3 {[%clk 0:03:00.4]}
5... O-O {[%clk 0:02:50.1]} 6. Bd3 {[%clk 0:03:00.8]} 6... c5 {[%clk 0:02:45.7]}
7. O-O {[%clk 0:03:01.7]} 7... Nc6 {[%clk 0:02:38.7]} 8. Ne5 {[%clk 0:03:01.4]}
8... Qc7 {[%clk 0:02:27.7]} 9. Nd2 {[%clk 0:03:01.1]} 9... Nd7 {[%clk
0:02:07.4]} 10. Nxc6 {[%clk 0:02:59.3]} 10... Qxc6 {[%clk 0:02:06.5]} 11. f5
{[%clk 0:02:59.5]} 11... Nf6 {[%clk 0:01:59.7]} 12. Qf3 {[%clk 0:02:56.6]} 12...
e6 {[%clk 0:01:36]} 13. fxg6 {[%clk 0:02:54.4]} 13... fxg6 {[%clk 0:01:23.1]}
14. Qe2 {[%clk 0:02:52]} 14... e5 {[%clk 0:01:17]} 15. dxe5 {[%clk 0:02:50.9]}
15... Ng4 {[%clk 0:01:14.3]} 16. Rxf8+ {[%clk 0:02:50.3]} 16... Kxf8 {[%clk
0:01:11.8]} 17. e4 {[%clk 0:02:43.8]} 17... Nxe5 {[%clk 0:00:53.2]} 18. exd5
{[%clk 0:02:42.4]} 18... Qxd5 {[%clk 0:00:54.1]} 19. Be4 {[%clk 0:02:40.3]}
19... Qd8 {[%clk 0:00:45]} 20. Nf3 {[%clk 0:02:30.7]} 20... Bg4 {[%clk
0:00:37.3]} 21. Be3 {[%clk 0:02:30]} 21... Qc7 {[%clk 0:00:23.1]} 22. Rf1 {[%clk
0:02:22.4]} 22... Bxf3 {[%clk 0:00:21.8]} 23. Bxf3 {[%clk 0:02:19.6]} 23...
Nxf3+ {[%clk 0:00:21.2]} 24. Rxf3+ {[%clk 0:02:14]} 24... Kg8 {[%clk 0:00:20.9]}
25. Qc4+ {[%clk 0:02:13.8]} 25... Kh8 {[%clk 0:00:20.3]} 26. Qxc5 {[%clk
0:02:12.7]} 26... Qd7 {[%clk 0:00:16.4]} 27. Bd4 {[%clk 0:01:51.5]} 27... Bxd4+
{[%clk 0:00:15.8]} 28. cxd4 {[%clk 0:01:51.4]} 28... Rd8 {[%clk 0:00:12.3]} 29.
d5 {[%clk 0:01:39.5]} 29... Kg7 {[%clk 0:00:09.6]} 30. Qd4+ {[%clk 0:01:36.4]}
30... Kg8 {[%clk 0:00:09.8]} 31. Rd3 {[%clk 0:01:31.7]} 31... b6 {[%clk
0:00:08.7]} 32. d6 {[%clk 0:01:29.3]} 32... Re8 {[%clk 0:00:08.5]} 33. Qd5+
{[%clk 0:01:27.8]} 33... Kg7 {[%clk 0:00:07.5]} 34. h3 {[%clk 0:01:26]} 34...
Re2 {[%clk 0:00:06.8]} 35. Kh2 {[%clk 0:01:25.1]} 35... h6 {[%clk 0:00:04.9]}
36. Qc4 {[%clk 0:01:15.9]} 36... Re6 {[%clk 0:00:04.8]} 37. Qc7 {[%clk
0:01:10.3]} 1-0

[Event "Late-Titled-Tuesday-Blitz-January-23-2024"]
[Site "Chess.com"]
[Date "2024.01.23"]
[Round "4"]
[White "Walter_White_Poland"]
[Black "campochess"]
[Result "1/2-1/2"]
[WhiteElo "2341"]
[BlackElo "2092"]
[TimeControl "180+1"]
[EndTime "14:37:16 PST"]
[Termination "Game drawn by repetition"]

1. e4 {[%clk 0:02:57.5]} 1... c5 {[%clk 0:02:59.8]} 2. Nf3 {[%clk 0:02:57.4]}
2... Nc6 {[%clk 0:02:59.9]} 3. Nc3 {[%clk 0:02:57]} 3... g6 {[%clk 0:02:58.8]}
4. Bb5 {[%clk 0:02:56.7]} 4... Bg7 {[%clk 0:02:58.1]} 5. O-O {[%clk 0:02:55.7]}
5... Nf6 {[%clk 0:02:55.7]} 6. e5 {[%clk 0:02:54.8]} 6... Ng4 {[%clk 0:02:54.2]}
7. Bxc6 {[%clk 0:02:54.2]} 7... dxc6 {[%clk 0:02:51.6]} 8. Re1 {[%clk 0:02:54]}
8... Nh6 {[%clk 0:02:45.8]} 9. d3 {[%clk 0:02:53]} 9... Nf5 {[%clk 0:02:44.7]}
10. Bf4 {[%clk 0:02:48.5]} 10... O-O {[%clk 0:02:43.1]} 11. h3 {[%clk
0:02:48.3]} 11... Nd4 {[%clk 0:02:40.2]} 12. a4 {[%clk 0:02:46.5]} 12... Be6
{[%clk 0:02:39.2]} 13. b3 {[%clk 0:02:44.5]} 13... Qa5 {[%clk 0:02:36.6]} 14.
Ne4 {[%clk 0:02:36.5]} 14... Nxf3+ {[%clk 0:02:35.1]} 15. Qxf3 {[%clk
0:02:35.7]} 15... Bd5 {[%clk 0:02:35.2]} 16. Qe3 {[%clk 0:02:31.1]} 16... Bxe4
{[%clk 0:02:34.9]} 17. Qxe4 {[%clk 0:02:31.1]} 17... Rad8 {[%clk 0:02:32.7]} 18.
Qe3 {[%clk 0:02:21.2]} 18... Rd5 {[%clk 0:02:25.6]} 19. e6 {[%clk 0:02:11.3]}
19... Bxa1 {[%clk 0:02:02.5]} 20. Rxa1 {[%clk 0:02:12.2]} 20... Qc3 {[%clk
0:02:01.6]} 21. Re1 {[%clk 0:02:09.7]} 21... Qf6 {[%clk 0:01:58.3]} 22. c4
{[%clk 0:01:46.3]} 22... Rf5 {[%clk 0:01:56.2]} 23. Bh6 {[%clk 0:01:45.4]} 23...
Re8 {[%clk 0:01:52.1]} 24. exf7+ {[%clk 0:01:21.8]} 24... Kxf7 {[%clk
0:01:50.3]} 25. f4 {[%clk 0:01:16.5]} 25... e5 {[%clk 0:01:29.8]} 26. Bg5 {[%clk
0:00:48]} 26... Qe6 {[%clk 0:01:29]} 27. g4 {[%clk 0:00:41.1]} 27... Rxg5 {[%clk
0:01:18.2]} 28. fxg5 {[%clk 0:00:42]} 28... Qd6 {[%clk 0:01:11.5]} 29. Rf1+
{[%clk 0:00:33.6]} 29... Kg7 {[%clk 0:01:10.2]} 30. Qf3 {[%clk 0:00:18.1]} 30...
Rf8 {[%clk 0:01:07.7]} 31. Qxf8+ {[%clk 0:00:17.8]} 31... Qxf8 {[%clk 0:01:07]}
32. Rxf8 {[%clk 0:00:18.7]} 32... Kxf8 {[%clk 0:01:07.1]} 33. Kf2 {[%clk
0:00:19.3]} 33... Ke7 {[%clk 0:01:05]} 34. Ke3 {[%clk 0:00:18.9]} 34... Ke6
{[%clk 0:01:04.3]} 35. a5 {[%clk 0:00:13.1]} 35... b5 {[%clk 0:01:02.8]} 36. Ke4
{[%clk 0:00:03.2]} 36... a6 {[%clk 0:01:02.2]} 37. Ke3 {[%clk 0:00:02.9]} 37...
Kd6 {[%clk 0:01:02.1]} 38. Ke4 {[%clk 0:00:03.1]} 38... Ke6 {[%clk 0:01:02.3]}
39. Ke3 {[%clk 0:00:03.3]} 39... Kd6 {[%clk 0:01:02.3]} 40. Ke4 {[%clk
0:00:03.4]} 40... Ke6 {[%clk 0:01:02.3]} 1/2-1/2

[Event "Late-Titled-Tuesday-Blitz-January-23-2024"]
[Site "Chess.com"]
[Date "2024.01.23"]
[Round "4"]
[White "Mikhail_Golubev"]
[Black "IranianCheetah"]
[Result "1-0"]
[WhiteElo "2523"]
[BlackElo "2345"]
[TimeControl "180+1"]
[EndTime "14:37:19 PST"]
[Termination "Mikhail_Golubev won on time"]

1. e4 {[%clk 0:03:00.9]} 1... e5 {[%clk 0:03:00.2]} 2. Nf3 {[%clk 0:03:00.4]}
2... Nc6 {[%clk 0:03:00.8]} 3. Bc4 {[%clk 0:03:00.6]} 3... Bc5 {[%clk
0:03:00.5]} 4. c3 {[%clk 0:03:00.1]} 4... Nf6 {[%clk 0:03:01]} 5. d4 {[%clk
0:03:00.5]} 5... exd4 {[%clk 0:03:01.9]} 6. cxd4 {[%clk 0:03:01]} 6... Bb4+
{[%clk 0:03:01.6]} 7. Nbd2 {[%clk 0:03:01.4]} 7... Nxe4 {[%clk 0:02:39.4]} 8. d5
{[%clk 0:03:00.2]} 8... Ne7 {[%clk 0:02:28.8]} 9. O-O {[%clk 0:03:00]} 9... Nxd2
{[%clk 0:02:26]} 10. Nxd2 {[%clk 0:03:00.9]} 10... O-O {[%clk 0:02:21.7]} 11.
Ne4 {[%clk 0:02:49.5]} 11... d6 {[%clk 0:02:12.4]} 12. a3 {[%clk 0:02:49.5]}
12... Ba5 {[%clk 0:02:11.4]} 13. b4 {[%clk 0:02:49.3]} 13... Bb6 {[%clk
0:02:11.6]} 14. Bb2 {[%clk 0:02:49.5]} 14... Nf5 {[%clk 0:02:02]} 15. Re1 {[%clk
0:02:45.4]} 15... Qh4 {[%clk 0:01:51.9]} 16. g3 {[%clk 0:02:26.9]} 16... Qh3
{[%clk 0:01:35.3]} 17. Rc1 {[%clk 0:02:15.9]} 17... Bd7 {[%clk 0:01:33.7]} 18.
Qd3 {[%clk 0:01:55.2]} 18... Rfe8 {[%clk 0:01:22.5]} 19. Bb5 {[%clk 0:01:43.1]}
19... Nh6 {[%clk 0:00:49.6]} 20. Bxd7 {[%clk 0:00:33.3]} 20... Qxd7 {[%clk
0:00:50]} 21. a4 {[%clk 0:00:33.6]} 21... Qxa4 {[%clk 0:00:40.1]} 22. Ng5 {[%clk
0:00:33.1]} 22... Rxe1+ {[%clk 0:00:12.5]} 23. Rxe1 {[%clk 0:00:30.7]} 23... f5
{[%clk 0:00:09.8]} 24. Re7 {[%clk 0:00:27.3]} 1-0

[Event "Late-Titled-Tuesday-Blitz-January-23-2024"]
[Site "Chess.com"]
[Date "2024.01.23"]
[Round "4"]
[White "yobdc"]
[Black "TanitoluwaAps116"]
[Result "1-0"]
[WhiteElo "2553"]
[BlackElo "2713"]
[TimeControl "180+1"]
[EndTime "14:37:23 PST"]
[Termination "yobdc won by resignation"]

1. d4 {[%clk 0:03:00.9]} 1... Nf6 {[%clk 0:02:58.6]} 2. c4 {[%clk 0:03:00.7]}
2... e6 {[%clk 0:02:56.2]} 3. Nf3 {[%clk 0:02:59.2]} 3... b6 {[%clk 0:02:54.2]}
4. a3 {[%clk 0:02:59.6]} 4... Bb7 {[%clk 0:02:53.4]} 5. Nc3 {[%clk 0:02:59.9]}
5... Be7 {[%clk 0:02:45.9]} 6. Qc2 {[%clk 0:02:59]} 6... d5 {[%clk 0:02:45.9]}
7. cxd5 {[%clk 0:02:58.5]} 7... Nxd5 {[%clk 0:02:43.5]} 8. e4 {[%clk 0:02:56.8]}
8... Nxc3 {[%clk 0:02:43.4]} 9. bxc3 {[%clk 0:02:57.7]} 9... O-O {[%clk
0:02:41.9]} 10. Bd3 {[%clk 0:02:58]} 10... c5 {[%clk 0:02:41.7]} 11. Qe2 {[%clk
0:02:57]} 11... cxd4 {[%clk 0:02:41.1]} 12. cxd4 {[%clk 0:02:57.9]} 12... Nc6
{[%clk 0:02:35.8]} 13. Bb2 {[%clk 0:02:58]} 13... Bf6 {[%clk 0:02:31.5]} 14. e5
{[%clk 0:02:54.8]} 14... Be7 {[%clk 0:02:29.7]} 15. h4 {[%clk 0:02:50.3]} 15...
h6 {[%clk 0:02:15.7]} 16. Qe4 {[%clk 0:02:38.7]} 16... g6 {[%clk 0:01:34.7]} 17.
Qg4 {[%clk 0:02:20]} 17... h5 {[%clk 0:01:29.3]} 18. Qf4 {[%clk 0:02:18.5]}
18... Na5 {[%clk 0:01:12.7]} 19. Qh6 {[%clk 0:01:35.7]} 19... Qd7 {[%clk
0:00:30.7]} 20. Bxg6 {[%clk 0:01:16.4]} 20... fxg6 {[%clk 0:00:31.6]} 21. Qxg6+
{[%clk 0:01:16.5]} 21... Kh8 {[%clk 0:00:32.1]} 22. Qh6+ {[%clk 0:00:54.2]}
22... Kg8 {[%clk 0:00:30.9]} 23. Rh3 {[%clk 0:00:46.8]} 23... Rf5 {[%clk
0:00:13.4]} 24. Rg3+ {[%clk 0:00:43.9]} 24... Bg5 {[%clk 0:00:12.7]} 25. Nxg5
{[%clk 0:00:39.4]} 25... Qg7 {[%clk 0:00:04.8]} 26. Nxe6 {[%clk 0:00:34.5]}
26... Qxg3 {[%clk 0:00:04.5]} 27. fxg3 {[%clk 0:00:34.9]} 27... Kf7 {[%clk
0:00:03.4]} 28. Ng5+ {[%clk 0:00:28.8]} 28... Ke7 {[%clk 0:00:02.8]} 29. Qh7+
{[%clk 0:00:29]} 29... Kd8 {[%clk 0:00:02.7]} 30. Qxf5 {[%clk 0:00:28.8]} 1-0